[Event "Titled Tuesday Blitz July 27 2021"]
[White "Bazeev, German"]
[Black "Piesik, Piotr"]
[WhiteFideId "24119350"]
[BlackFideId "1136194"]
[WhiteElo "2462"]
[BlackElo "2354"]
[Result "1-0"]
[Round "05"]
[TimeControl "180+1"]
[Date "2021.07.27"]
[WhiteClock "0:00:11"]
[BlackClock "0:00:32"]

1. d4 {[%clk 0:03:00]}  c5 {[%clk 0:02:58]} 2. c3 {[%clk 0:02:59]}  Nf6 {[%clk 0:02:58]} 3. Nf3 {[%clk 0:02:59]}  d5 {[%clk 0:02:58]} 4. Bg5 {[%clk 0:02:58]}  Ne4 {[%clk 0:02:57]} 5. Be3 {[%clk 0:02:55]}  Bf5 {[%clk 0:02:58]} 6. Nbd2 {[%clk 0:02:54]}  e6 {[%clk 0:02:56]} 7. g3 {[%clk 0:02:53]}  Nc6 {[%clk 0:02:54]} 8. Bg2 {[%clk 0:02:53]}  cxd4 {[%clk 0:02:52]} 9. Nxd4 {[%clk 0:02:52]}  Nxd4 {[%clk 0:02:51]} 10. Bxd4 {[%clk 0:02:53]}  Nxd2 {[%clk 0:02:50]} 11. Qxd2 {[%clk 0:02:52]}  f6 {[%clk 0:02:45]} 12. O-O {[%clk 0:02:49]}  Be7 {[%clk 0:02:42]} 13. Rfd1 {[%clk 0:02:27]}  O-O {[%clk 0:02:40]} 14. a4 {[%clk 0:02:27]}  Qc7 {[%clk 0:02:36]} 15. a5 {[%clk 0:02:24]}  Bc5 {[%clk 0:02:35]} 16. Bxc5 {[%clk 0:02:21]}  Qxc5 {[%clk 0:02:35]} 17. Qd4 {[%clk 0:02:22]}  Rac8 {[%clk 0:02:31]} 18. h4 {[%clk 0:01:13]}  Qxd4 {[%clk 0:02:25]} 19. Rxd4 {[%clk 0:01:13]}  Rc5 {[%clk 0:02:19]} 20. Rb4 {[%clk 0:01:12]}  Rc7 {[%clk 0:02:10]} 21. h5 {[%clk 0:01:10]}  h6 {[%clk 0:02:00]} 22. Rd1 {[%clk 0:01:02]}  Rfc8 {[%clk 0:01:52]} 23. Kf1 {[%clk 0:00:54]}  Kf8 {[%clk 0:01:51]} 24. f4 {[%clk 0:00:32]}  Bg4 {[%clk 0:01:41]} 25. Bf3 {[%clk 0:00:27]}  Bxf3 {[%clk 0:01:40]} 26. exf3 {[%clk 0:00:28]}  Ke7 {[%clk 0:01:39]} 27. f5 {[%clk 0:00:28]}  Rd8 {[%clk 0:01:37]} 28. fxe6 {[%clk 0:00:27]}  Kxe6 {[%clk 0:01:37]} 29. Kf2 {[%clk 0:00:25]}  Rd6 {[%clk 0:01:35]} 30. g4 {[%clk 0:00:25]}  b6 {[%clk 0:01:30]} 31. axb6 {[%clk 0:00:24]}  Rxb6 {[%clk 0:01:30]} 32. Rxb6+ {[%clk 0:00:23]}  axb6 {[%clk 0:01:31]} 33. Re1+ {[%clk 0:00:23]}  Kd6 {[%clk 0:01:31]} 34. Kg3 {[%clk 0:00:24]}  Ra7 {[%clk 0:01:28]} 35. Kf4 {[%clk 0:00:23]}  Ra2 {[%clk 0:01:02]} 36. Re2 {[%clk 0:00:22]}  Ra1 {[%clk 0:01:01]} 37. Kf5 {[%clk 0:00:20]}  Rf1 {[%clk 0:01:00]} 38. Re3 {[%clk 0:00:21]}  Rf2 {[%clk 0:00:57]} 39. Kg6 {[%clk 0:00:20]}  Rxb2 {[%clk 0:00:54]} 40. Kxg7 {[%clk 0:00:20]}  b5 {[%clk 0:00:47]} 41. Kxh6 {[%clk 0:00:20]}  Rb3 {[%clk 0:00:41]} 42. Kg7 {[%clk 0:00:16]}  b4 {[%clk 0:00:41]} 43. h6 {[%clk 0:00:16]}  bxc3 {[%clk 0:00:41]} 44. h7 {[%clk 0:00:17]}  c2 {[%clk 0:00:39]} 45. Rxb3 {[%clk 0:00:17]}  c1=Q {[%clk 0:00:39]} 46. h8=Q {[%clk 0:00:16]}  Qc7+ {[%clk 0:00:38]} 47. Kh6 {[%clk 0:00:13]}  Qc1+ {[%clk 0:00:36]} 48. Kg7 {[%clk 0:00:13]}  Qc7+ {[%clk 0:00:36]} 49. Kxf6 {[%clk 0:00:11]}  Qe7+ {[%clk 0:00:32]} 50. Kg6 {[%clk 0:00:11]} 1-0


[Site "https://www.chess.com"]

[Event "Titled Tuesday Blitz July 27 2021"]
[White "Gabrielian, Artur"]
[Black "Sadhwani, Raunak"]
[WhiteFideId "4131002"]
[BlackFideId "35093487"]
[WhiteElo "2523"]
[BlackElo "2514"]
[Result "0-1"]
[Round "05"]
[TimeControl "180+1"]
[Date "2021.07.27"]
[WhiteClock "0:00:03"]
[BlackClock "0:00:10"]

1. e4 {[%clk 0:03:00]}  c5 {[%clk 0:03:00]} 2. Nc3 {[%clk 0:02:58]}  Nc6 {[%clk 0:02:57]} 3. Bb5 {[%clk 0:02:57]}  Nd4 {[%clk 0:02:56]} 4. Bc4 {[%clk 0:02:58]}  a6 {[%clk 0:02:55]} 5. Nce2 {[%clk 0:02:57]}  Nc6 {[%clk 0:02:50]} 6. Nf3 {[%clk 0:02:54]}  e6 {[%clk 0:02:49]} 7. a4 {[%clk 0:02:51]}  d5 {[%clk 0:02:48]} 8. exd5 {[%clk 0:02:50]}  exd5 {[%clk 0:02:49]} 9. Ba2 {[%clk 0:02:50]}  Bg4 {[%clk 0:02:48]} 10. d4 {[%clk 0:02:38]}  Bxf3 {[%clk 0:02:44]} 11. gxf3 {[%clk 0:02:38]}  Nf6 {[%clk 0:02:45]} 12. dxc5 {[%clk 0:02:33]}  Bxc5 {[%clk 0:02:45]} 13. Rg1 {[%clk 0:02:32]}  Qb6 {[%clk 0:02:20]} 14. Rxg7 {[%clk 0:02:05]}  O-O-O {[%clk 0:02:20]} 15. Qd3 {[%clk 0:01:52]}  Rhg8 {[%clk 0:01:51]} 16. Qf5+ {[%clk 0:01:44]}  Nd7 {[%clk 0:01:51]} 17. Rxg8 {[%clk 0:01:22]}  Rxg8 {[%clk 0:01:52]} 18. Qxf7 {[%clk 0:00:57]}  Rf8 {[%clk 0:01:40]} 19. Qxd5 {[%clk 0:00:57]}  Nb4 {[%clk 0:01:34]} 20. Qe4 {[%clk 0:00:56]}  Bxf2+ {[%clk 0:01:23]} 21. Kf1 {[%clk 0:00:56]}  Nxa2 {[%clk 0:01:23]} 22. Rxa2 {[%clk 0:00:52]}  Bc5 {[%clk 0:01:23]} 23. b4 {[%clk 0:00:47]}  Bd6 {[%clk 0:01:14]} 24. Be3 {[%clk 0:00:44]}  Qxb4 {[%clk 0:00:55]} 25. Qxb4 {[%clk 0:00:44]}  Bxb4 {[%clk 0:00:56]} 26. Kf2 {[%clk 0:00:42]}  Ne5 {[%clk 0:00:56]} 27. Nf4 {[%clk 0:00:41]}  Nc4 {[%clk 0:00:41]} 28. Nd5 {[%clk 0:00:41]}  Bd6 {[%clk 0:00:40]} 29. Ra1 {[%clk 0:00:33]}  Rf7 {[%clk 0:00:33]} 30. h4 {[%clk 0:00:30]}  Kd7 {[%clk 0:00:33]} 31. Rd1 {[%clk 0:00:27]}  Kc6 {[%clk 0:00:32]} 32. f4 {[%clk 0:00:22]}  Rf5 {[%clk 0:00:22]} 33. Nc3 {[%clk 0:00:17]}  Bxf4 {[%clk 0:00:21]} 34. Bxf4 {[%clk 0:00:15]}  Rxf4+ {[%clk 0:00:22]} 35. Kg3 {[%clk 0:00:15]}  Rf5 {[%clk 0:00:22]} 36. Ne4 {[%clk 0:00:15]}  Ra5 {[%clk 0:00:19]} 37. Rf1 {[%clk 0:00:14]}  Rxa4 {[%clk 0:00:19]} 38. Rf6+ {[%clk 0:00:14]}  Kc7 {[%clk 0:00:20]} 39. Rf7+ {[%clk 0:00:14]}  Kc6 {[%clk 0:00:20]} 40. Rf6+ {[%clk 0:00:14]}  Kc7 {[%clk 0:00:17]} 41. Rf7+ {[%clk 0:00:15]}  Kb6 {[%clk 0:00:18]} 42. Rxb7+ {[%clk 0:00:13]}  Kxb7 {[%clk 0:00:18]} 43. Nc5+ {[%clk 0:00:14]}  Kc6 {[%clk 0:00:19]} 44. Nxa4 {[%clk 0:00:14]}  a5 {[%clk 0:00:19]} 45. Kf4 {[%clk 0:00:14]}  Kb5 {[%clk 0:00:20]} 46. Nc3+ {[%clk 0:00:14]}  Kb4 {[%clk 0:00:20]} 47. Nb1 {[%clk 0:00:13]}  a4 {[%clk 0:00:18]} 48. Ke4 {[%clk 0:00:13]}  Na3 {[%clk 0:00:14]} 49. c3+ {[%clk 0:00:06]}  Kb3 {[%clk 0:00:12]} 50. Nd2+ {[%clk 0:00:05]}  Kxc3 {[%clk 0:00:11]} 51. Nf3 {[%clk 0:00:06]}  Nb5 {[%clk 0:00:11]} 52. Ng1 {[%clk 0:00:03]}  a3 {[%clk 0:00:11]} 53. Ne2+ {[%clk 0:00:03]}  Kb2 {[%clk 0:00:11]} 54. Nf4 {[%clk 0:00:03]}  a2 {[%clk 0:00:11]} 55. Nd3+ {[%clk 0:00:04]}  Ka3 {[%clk 0:00:10]} 56. Ne1 {[%clk 0:00:03]}  Kb3 {[%clk 0:00:10]} 0-1


[Site "https://www.chess.com"]

[Event "Titled Tuesday Blitz July 27 2021"]
[White "Gelman, Alexander"]
[Black "Sarana, Alexey"]
[WhiteFideId "4118316"]
[BlackFideId "24133795"]
[WhiteElo "2375"]
[BlackElo "2646"]
[Result "0-1"]
[Round "05"]
[TimeControl "180+1"]
[Date "2021.07.27"]
[WhiteClock "0:00:05"]
[BlackClock "0:00:15"]

1. d4 {[%clk 0:03:00]}  d5 {[%clk 0:03:00]} 2. Nc3 {[%clk 0:03:00]}  Nf6 {[%clk 0:02:57]} 3. Bf4 {[%clk 0:03:00]}  a6 {[%clk 0:02:56]} 4. e3 {[%clk 0:02:59]}  c5 {[%clk 0:02:55]} 5. Nf3 {[%clk 0:02:58]}  Qb6 {[%clk 0:02:51]} 6. Na4 {[%clk 0:02:14]}  Qa5+ {[%clk 0:02:49]} 7. c3 {[%clk 0:02:15]}  cxd4 {[%clk 0:02:47]} 8. exd4 {[%clk 0:02:12]}  Nc6 {[%clk 0:02:45]} 9. Nc5 {[%clk 0:01:56]}  e6 {[%clk 0:02:34]} 10. b4 {[%clk 0:01:45]}  Qd8 {[%clk 0:02:34]} 11. Bd3 {[%clk 0:01:45]}  b6 {[%clk 0:02:32]} 12. Nb3 {[%clk 0:01:43]}  a5 {[%clk 0:02:27]} 13. b5 {[%clk 0:01:40]}  Ne7 {[%clk 0:02:25]} 14. Ne5 {[%clk 0:01:37]}  Ng6 {[%clk 0:02:23]} 15. Bg3 {[%clk 0:01:22]}  Nxe5 {[%clk 0:02:20]} 16. Bxe5 {[%clk 0:01:20]}  Bd6 {[%clk 0:02:16]} 17. O-O {[%clk 0:01:09]}  O-O {[%clk 0:02:12]} 18. Qf3 {[%clk 0:00:55]}  a4 {[%clk 0:02:02]} 19. Nd2 {[%clk 0:00:55]}  Bxe5 {[%clk 0:01:53]} 20. dxe5 {[%clk 0:00:55]}  Nd7 {[%clk 0:01:53]} 21. Qh3 {[%clk 0:00:47]}  f5 {[%clk 0:01:52]} 22. exf6 {[%clk 0:00:36]}  Nxf6 {[%clk 0:01:52]} 23. Nf3 {[%clk 0:00:35]}  e5 {[%clk 0:01:49]} 24. Bf5 {[%clk 0:00:29]}  e4 {[%clk 0:01:28]} 25. Nd4 {[%clk 0:00:28]}  Bxf5 {[%clk 0:01:27]} 26. Qxf5 {[%clk 0:00:28]}  Qc8 {[%clk 0:01:22]} 27. Qg5 {[%clk 0:00:23]}  Qxc3 {[%clk 0:01:04]} 28. Ne6 {[%clk 0:00:20]}  Rf7 {[%clk 0:01:02]} 29. Rac1 {[%clk 0:00:18]}  Qb2 {[%clk 0:00:41]} 30. Rb1 {[%clk 0:00:16]}  Qa3 {[%clk 0:00:41]} 31. Nxg7 {[%clk 0:00:14]}  Kh8 {[%clk 0:00:42]} 32. Nf5 {[%clk 0:00:09]}  Rg8 {[%clk 0:00:41]} 33. Qh4 {[%clk 0:00:09]}  Qf3 {[%clk 0:00:22]} 34. Ng3 {[%clk 0:00:09]}  Qg4 {[%clk 0:00:21]} 35. Qh6 {[%clk 0:00:08]}  d4 {[%clk 0:00:20]} 36. Rbc1 {[%clk 0:00:08]}  d3 {[%clk 0:00:20]} 37. Rfd1 {[%clk 0:00:07]}  Nd5 {[%clk 0:00:18]} 38. Rc4 {[%clk 0:00:05]}  Qxd1+ {[%clk 0:00:15]} 0-1


[Site "https://www.chess.com"]

[Event "Titled Tuesday Blitz July 27 2021"]
[White "Khusnutdinov, Rustam"]
[Black "Urazayev, Arystanbek"]
[WhiteFideId "13701703"]
[BlackFideId "13709810"]
[WhiteElo "2571"]
[BlackElo "2321"]
[Result "1-0"]
[Round "05"]
[TimeControl "180+1"]
[Date "2021.07.27"]
[WhiteClock "0:01:33"]
[BlackClock "0:00:26"]

1. d4 {[%clk 0:03:00]}  d5 {[%clk 0:03:00]} 2. c4 {[%clk 0:02:46]}  e6 {[%clk 0:03:00]} 3. Nc3 {[%clk 0:02:46]}  Nf6 {[%clk 0:03:00]} 4. Bg5 {[%clk 0:02:41]}  dxc4 {[%clk 0:02:56]} 5. e4 {[%clk 0:02:32]}  c5 {[%clk 0:02:33]} 6. d5 {[%clk 0:02:30]}  h6 {[%clk 0:02:28]} 7. Bxf6 {[%clk 0:02:23]}  Qxf6 {[%clk 0:02:28]} 8. Bxc4 {[%clk 0:02:23]}  a6 {[%clk 0:01:59]} 9. Nf3 {[%clk 0:02:21]}  Nd7 {[%clk 0:01:46]} 10. dxe6 {[%clk 0:02:14]}  fxe6 {[%clk 0:01:47]} 11. O-O {[%clk 0:02:15]}  Ne5 {[%clk 0:01:44]} 12. Nxe5 {[%clk 0:02:05]}  Qxe5 {[%clk 0:01:45]} 13. Kh1 {[%clk 0:02:06]}  b5 {[%clk 0:01:28]} 14. f4 {[%clk 0:01:52]}  Qc7 {[%clk 0:01:28]} 15. Be2 {[%clk 0:01:51]}  Be7 {[%clk 0:01:07]} 16. Bh5+ {[%clk 0:01:47]}  Kf8 {[%clk 0:01:07]} 17. f5 {[%clk 0:01:42]}  exf5 {[%clk 0:01:01]} 18. Qd5 {[%clk 0:01:36]}  Bf6 {[%clk 0:00:26]} 19. Qxa8 {[%clk 0:01:33]} 1-0


[Site "https://www.chess.com"]

[Event "Titled Tuesday Blitz July 27 2021"]
[White "Makhnev, Denis"]
[Black "Wiewiora, Eneasz"]
[WhiteFideId "13707647"]
[BlackFideId "1140396"]
[WhiteElo "2537"]
[BlackElo "2312"]
[Result "1-0"]
[Round "05"]
[TimeControl "180+1"]
[Date "2021.07.27"]
[WhiteClock "0:00:13"]
[BlackClock "0:00:01"]

1. d4 {[%clk 0:03:00]}  d5 {[%clk 0:02:59]} 2. c4 {[%clk 0:03:01]}  e6 {[%clk 0:02:58]} 3. Nf3 {[%clk 0:03:01]}  Nf6 {[%clk 0:02:58]} 4. g3 {[%clk 0:03:02]}  Be7 {[%clk 0:02:57]} 5. Bg2 {[%clk 0:03:02]}  O-O {[%clk 0:02:57]} 6. O-O {[%clk 0:03:03]}  dxc4 {[%clk 0:02:58]} 7. Qc2 {[%clk 0:03:04]}  b5 {[%clk 0:02:58]} 8. a4 {[%clk 0:03:03]}  b4 {[%clk 0:02:52]} 9. Nfd2 {[%clk 0:03:02]}  c6 {[%clk 0:02:50]} 10. Nxc4 {[%clk 0:03:03]}  Qxd4 {[%clk 0:02:50]} 11. Rd1 {[%clk 0:03:02]}  Qg4 {[%clk 0:02:50]} 12. Ne5 {[%clk 0:02:22]}  Qf5 {[%clk 0:02:31]} 13. Qxf5 {[%clk 0:02:20]}  exf5 {[%clk 0:02:31]} 14. Nxc6 {[%clk 0:02:21]}  Nxc6 {[%clk 0:02:32]} 15. Bxc6 {[%clk 0:02:22]}  Rb8 {[%clk 0:02:31]} 16. Bf4 {[%clk 0:02:14]}  Rb6 {[%clk 0:02:28]} 17. Bf3 {[%clk 0:02:15]}  Be6 {[%clk 0:02:25]} 18. Nd2 {[%clk 0:02:11]}  b3 {[%clk 0:01:50]} 19. a5 {[%clk 0:01:09]}  Rb4 {[%clk 0:01:45]} 20. Be5 {[%clk 0:01:08]}  Rc8 {[%clk 0:01:34]} 21. Bc3 {[%clk 0:01:01]}  Rb5 {[%clk 0:01:30]} 22. a6 {[%clk 0:00:52]}  Nd5 {[%clk 0:01:18]} 23. Bd4 {[%clk 0:00:53]}  Nb6 {[%clk 0:00:39]} 24. Rdc1 {[%clk 0:00:38]}  h6 {[%clk 0:00:37]} 25. e3 {[%clk 0:00:37]}  Kh7 {[%clk 0:00:33]} 26. Bb7 {[%clk 0:00:33]}  Rxc1+ {[%clk 0:00:31]} 27. Rxc1 {[%clk 0:00:34]}  Bb4 {[%clk 0:00:29]} 28. Nf3 {[%clk 0:00:31]}  Nc4 {[%clk 0:00:20]} 29. Bxa7 {[%clk 0:00:19]}  Nxb2 {[%clk 0:00:20]} 30. Bd4 {[%clk 0:00:19]}  Nd3 {[%clk 0:00:19]} 31. Rb1 {[%clk 0:00:20]}  Bc5 {[%clk 0:00:03]} 32. Bxc5 {[%clk 0:00:15]}  Nxc5 {[%clk 0:00:04]} 33. a7 {[%clk 0:00:15]}  Rxb7 {[%clk 0:00:01]} 34. a8=Q {[%clk 0:00:15]}  Bd5 {[%clk 0:00:01]} 35. Qa3 {[%clk 0:00:13]} 1-0


[Site "https://www.chess.com"]

[Event "Titled Tuesday Blitz July 27 2021"]
[White "Oparin, Grigoriy"]
[Black "Ismagilov, Damir"]
[WhiteFideId "24125890"]
[BlackFideId "34199982"]
[WhiteElo "2628"]
[BlackElo "2075"]
[Result "1-0"]
[Round "05"]
[TimeControl "180+1"]
[Date "2021.07.27"]
[WhiteClock "0:02:11"]
[BlackClock "0:01:01"]

1. b3 {[%clk 0:03:00]}  Nf6 {[%clk 0:02:56]} 2. Bb2 {[%clk 0:03:01]}  e6 {[%clk 0:02:56]} 3. Nf3 {[%clk 0:03:01]}  b6 {[%clk 0:02:54]} 4. c4 {[%clk 0:03:01]}  Bb7 {[%clk 0:02:51]} 5. g3 {[%clk 0:03:02]}  c5 {[%clk 0:02:49]} 6. Bg2 {[%clk 0:03:02]}  Be7 {[%clk 0:02:47]} 7. O-O {[%clk 0:03:02]}  O-O {[%clk 0:02:47]} 8. d4 {[%clk 0:03:02]}  cxd4 {[%clk 0:02:47]} 9. Qxd4 {[%clk 0:03:03]}  d6 {[%clk 0:02:45]} 10. Rd1 {[%clk 0:03:02]}  Nbd7 {[%clk 0:02:45]} 11. Nc3 {[%clk 0:03:03]}  a6 {[%clk 0:02:44]} 12. e4 {[%clk 0:02:58]}  Qc7 {[%clk 0:02:43]} 13. Qe3 {[%clk 0:02:56]}  Rac8 {[%clk 0:02:34]} 14. Rac1 {[%clk 0:02:56]}  Rfe8 {[%clk 0:02:29]} 15. Qe1 {[%clk 0:02:55]}  Qb8 {[%clk 0:02:21]} 16. Nd4 {[%clk 0:02:52]}  Qa8 {[%clk 0:02:15]} 17. Rc2 {[%clk 0:02:52]}  Nc5 {[%clk 0:02:10]} 18. Re2 {[%clk 0:02:52]}  Bf8 {[%clk 0:02:07]} 19. h3 {[%clk 0:02:52]}  d5 {[%clk 0:02:00]} 20. exd5 {[%clk 0:02:35]}  exd5 {[%clk 0:02:00]} 21. cxd5 {[%clk 0:02:36]}  Rxe2 {[%clk 0:01:56]} 22. Ndxe2 {[%clk 0:02:37]}  Re8 {[%clk 0:01:41]} 23. Qf1 {[%clk 0:02:30]}  Bd6 {[%clk 0:01:36]} 24. Nd4 {[%clk 0:02:20]}  Nxd5 {[%clk 0:01:16]} 25. Nxd5 {[%clk 0:02:21]}  Bxd5 {[%clk 0:01:16]} 26. Bxd5 {[%clk 0:02:22]}  Qxd5 {[%clk 0:01:16]} 27. Nb5 {[%clk 0:02:23]}  Qf3 {[%clk 0:01:09]} 28. Nxd6 {[%clk 0:02:23]}  Re2 {[%clk 0:01:07]} 29. Nf5 {[%clk 0:02:11]}  h5 {[%clk 0:01:01]} 30. Nd4 {[%clk 0:02:11]} 1-0


[Site "https://www.chess.com"]

[Event "Titled Tuesday Blitz July 27 2021"]
[White "Salinas Herrera, Pablo"]
[Black "Lazavik, Denis"]
[WhiteFideId "3407128"]
[BlackFideId "13515110"]
[WhiteElo "2541"]
[BlackElo "2436"]
[Result "1/2-1/2"]
[Round "05"]
[TimeControl "180+1"]
[Date "2021.07.27"]
[WhiteClock "0:00:09"]
[BlackClock "0:00:04"]

1. d4 {[%clk 0:03:00]}  Nf6 {[%clk 0:02:58]} 2. Nf3 {[%clk 0:03:00]}  d5 {[%clk 0:02:57]} 3. Bf4 {[%clk 0:02:55]}  e6 {[%clk 0:02:57]} 4. e3 {[%clk 0:02:55]}  Bd6 {[%clk 0:02:57]} 5. Nbd2 {[%clk 0:02:56]}  O-O {[%clk 0:02:57]} 6. Bd3 {[%clk 0:02:55]}  Bxf4 {[%clk 0:02:48]} 7. exf4 {[%clk 0:02:56]}  b6 {[%clk 0:02:48]} 8. Qe2 {[%clk 0:02:55]}  c5 {[%clk 0:02:47]} 9. c3 {[%clk 0:02:55]}  a5 {[%clk 0:02:47]} 10. O-O {[%clk 0:02:54]}  Ba6 {[%clk 0:02:47]} 11. Bxa6 {[%clk 0:02:54]}  Nxa6 {[%clk 0:02:48]} 12. Rfe1 {[%clk 0:02:54]}  Qc7 {[%clk 0:02:46]} 13. g3 {[%clk 0:02:53]}  Nb8 {[%clk 0:02:45]} 14. Nf1 {[%clk 0:02:34]}  Nc6 {[%clk 0:02:44]} 15. Rad1 {[%clk 0:02:34]}  Rab8 {[%clk 0:02:20]} 16. Ne3 {[%clk 0:02:33]}  Rfe8 {[%clk 0:02:09]} 17. Kg2 {[%clk 0:02:26]}  b5 {[%clk 0:02:03]} 18. dxc5 {[%clk 0:02:19]}  Qa7 {[%clk 0:01:50]} 19. Nc2 {[%clk 0:02:08]}  Qxc5 {[%clk 0:01:49]} 20. Ncd4 {[%clk 0:02:08]}  b4 {[%clk 0:01:43]} 21. cxb4 {[%clk 0:02:05]}  Rxb4 {[%clk 0:01:24]} 22. Nxc6 {[%clk 0:01:57]}  Qxc6 {[%clk 0:01:22]} 23. Ne5 {[%clk 0:01:57]}  Qb7 {[%clk 0:01:21]} 24. Nd3 {[%clk 0:01:53]}  Re4 {[%clk 0:01:16]} 25. Qd2 {[%clk 0:01:52]}  Rxe1 {[%clk 0:01:04]} 26. Rxe1 {[%clk 0:01:50]}  a4 {[%clk 0:01:05]} 27. Rc1 {[%clk 0:01:44]}  Rb8 {[%clk 0:00:56]} 28. Kg1 {[%clk 0:01:39]}  h5 {[%clk 0:00:54]} 29. Rc2 {[%clk 0:01:32]}  h4 {[%clk 0:00:48]} 30. Qc1 {[%clk 0:01:31]}  d4 {[%clk 0:00:44]} 31. Ne5 {[%clk 0:01:28]}  h3 {[%clk 0:00:41]} 32. Qf1 {[%clk 0:01:28]}  Qe4 {[%clk 0:00:38]} 33. Re2 {[%clk 0:01:17]}  Qf5 {[%clk 0:00:37]} 34. Rd2 {[%clk 0:01:17]}  Nd5 {[%clk 0:00:29]} 35. Qd3 {[%clk 0:01:10]}  Rc8 {[%clk 0:00:26]} 36. Rd1 {[%clk 0:00:53]}  Qxd3 {[%clk 0:00:25]} 37. Nxd3 {[%clk 0:00:53]}  Rc2 {[%clk 0:00:26]} 38. Kf1 {[%clk 0:00:36]}  f6 {[%clk 0:00:21]} 39. Ke1 {[%clk 0:00:23]}  a3 {[%clk 0:00:17]} 40. bxa3 {[%clk 0:00:23]}  Rxa2 {[%clk 0:00:17]} 41. Nb4 {[%clk 0:00:24]}  Rxa3 {[%clk 0:00:15]} 42. Nxd5 {[%clk 0:00:24]}  exd5 {[%clk 0:00:16]} 43. Rxd4 {[%clk 0:00:24]}  Ra5 {[%clk 0:00:17]} 44. Ke2 {[%clk 0:00:24]}  Kf7 {[%clk 0:00:17]} 45. f5 {[%clk 0:00:24]}  Ke7 {[%clk 0:00:15]} 46. Rg4 {[%clk 0:00:21]}  Kf7 {[%clk 0:00:10]} 47. Rh4 {[%clk 0:00:19]}  Ra2+ {[%clk 0:00:09]} 48. Ke3 {[%clk 0:00:20]}  Ra3+ {[%clk 0:00:09]} 49. Kd4 {[%clk 0:00:17]}  Ra2 {[%clk 0:00:08]} 50. Rf4 {[%clk 0:00:14]}  Ra5 {[%clk 0:00:08]} 51. Ke3 {[%clk 0:00:10]}  Ke7 {[%clk 0:00:08]} 52. Rg4 {[%clk 0:00:10]}  Kd6 {[%clk 0:00:05]} 53. Rxg7 {[%clk 0:00:10]}  Ke5 {[%clk 0:00:05]} 54. g4 {[%clk 0:00:10]}  Ra3+ {[%clk 0:00:04]} 55. Ke2 {[%clk 0:00:10]}  d4 {[%clk 0:00:05]} 56. Rd7 {[%clk 0:00:08]}  Ra2+ {[%clk 0:00:04]} 57. Kf3 {[%clk 0:00:08]}  Ra3+ {[%clk 0:00:05]} 58. Ke2 {[%clk 0:00:09]}  Ke4 {[%clk 0:00:05]} 59. f3+ {[%clk 0:00:08]}  Ke5 {[%clk 0:00:05]} 60. Kf2 {[%clk 0:00:08]}  d3 {[%clk 0:00:04]} 61. Ke3 {[%clk 0:00:07]}  d2+ {[%clk 0:00:04]} 62. Ke2 {[%clk 0:00:05]}  Kf4 {[%clk 0:00:03]} 63. Rd4+ {[%clk 0:00:05]}  Kg5 {[%clk 0:00:04]} 64. Rxd2 {[%clk 0:00:05]}  Kf4 {[%clk 0:00:03]} 65. Rd4+ {[%clk 0:00:05]}  Kg5 {[%clk 0:00:04]} 66. Kf2 {[%clk 0:00:05]}  Kh4 {[%clk 0:00:04]} 67. g5+ {[%clk 0:00:04]}  Kxg5 {[%clk 0:00:04]} 68. Kg3 {[%clk 0:00:04]}  Kxf5 {[%clk 0:00:04]} 69. Rf4+ {[%clk 0:00:05]}  Kg5 {[%clk 0:00:05]} 70. Rh4 {[%clk 0:00:05]}  Rxf3+ {[%clk 0:00:03]} 71. Kxf3 {[%clk 0:00:06]}  Kxh4 {[%clk 0:00:04]} 72. Kf4 {[%clk 0:00:07]}  Kh5 {[%clk 0:00:04]} 73. Kf5 {[%clk 0:00:07]}  Kh4 {[%clk 0:00:04]} 74. Kf4 {[%clk 0:00:08]}  Kh5 {[%clk 0:00:03]} 75. Kf5 {[%clk 0:00:08]}  Kh4 {[%clk 0:00:04]} 76. Kf4 {[%clk 0:00:09]} 1/2-1/2


[Site "https://www.chess.com"]

[Event "Titled Tuesday Blitz July 27 2021"]
[White "Stribuk, Artiom"]
[Black "Sanal, Vahap"]
[WhiteFideId "13515659"]
[BlackFideId "6300545"]
[WhiteElo "2224"]
[BlackElo "2495"]
[Result "0-1"]
[Round "05"]
[TimeControl "180+1"]
[Date "2021.07.27"]
[WhiteClock "0:00:01"]
[BlackClock "0:00:36"]

1. d4 {[%clk 0:02:41]}  Nf6 {[%clk 0:02:58]} 2. c4 {[%clk 0:02:40]}  g6 {[%clk 0:02:58]} 3. g3 {[%clk 0:02:39]}  Bg7 {[%clk 0:02:57]} 4. Bg2 {[%clk 0:02:39]}  O-O {[%clk 0:02:57]} 5. Nf3 {[%clk 0:02:39]}  d6 {[%clk 0:02:57]} 6. O-O {[%clk 0:02:40]}  Nc6 {[%clk 0:02:57]} 7. Nc3 {[%clk 0:02:41]}  a6 {[%clk 0:02:58]} 8. Qd3 {[%clk 0:02:39]}  Rb8 {[%clk 0:02:57]} 9. d5 {[%clk 0:02:38]}  Na7 {[%clk 0:02:51]} 10. Nd4 {[%clk 0:02:11]}  e5 {[%clk 0:02:45]} 11. dxe6 {[%clk 0:02:09]}  fxe6 {[%clk 0:02:45]} 12. e4 {[%clk 0:02:00]}  Ng4 {[%clk 0:02:31]} 13. a4 {[%clk 0:01:22]}  Ne5 {[%clk 0:02:25]} 14. Qe2 {[%clk 0:01:23]}  Nac6 {[%clk 0:02:25]} 15. Nc2 {[%clk 0:01:15]}  Nd7 {[%clk 0:02:18]} 16. Be3 {[%clk 0:01:13]}  Nc5 {[%clk 0:02:16]} 17. Rad1 {[%clk 0:01:10]}  Qe7 {[%clk 0:02:16]} 18. h4 {[%clk 0:00:59]}  Bxc3 {[%clk 0:02:12]} 19. bxc3 {[%clk 0:00:59]}  Nxa4 {[%clk 0:02:11]} 20. Qd2 {[%clk 0:00:50]}  Nb2 {[%clk 0:02:11]} 21. Bg5 {[%clk 0:00:44]}  Qf7 {[%clk 0:02:10]} 22. Bh6 {[%clk 0:00:34]}  Nxd1 {[%clk 0:02:07]} 23. Rxd1 {[%clk 0:00:34]}  Re8 {[%clk 0:02:03]} 24. Ne3 {[%clk 0:00:31]}  a5 {[%clk 0:01:36]} 25. h5 {[%clk 0:00:31]}  gxh5 {[%clk 0:01:35]} 26. Qe2 {[%clk 0:00:14]}  Qg6 {[%clk 0:01:32]} 27. Bf4 {[%clk 0:00:10]}  e5 {[%clk 0:01:32]} 28. Nd5 {[%clk 0:00:10]}  exf4 {[%clk 0:01:31]} 29. Nxf4 {[%clk 0:00:11]}  Qg5 {[%clk 0:01:23]} 30. Rb1 {[%clk 0:00:08]}  Ne5 {[%clk 0:01:21]} 31. Nd5 {[%clk 0:00:07]}  c6 {[%clk 0:01:18]} 32. Ne3 {[%clk 0:00:05]}  Bg4 {[%clk 0:01:17]} 33. f3 {[%clk 0:00:05]}  Bxf3 {[%clk 0:01:08]} 34. Bxf3 {[%clk 0:00:05]}  Nxf3+ {[%clk 0:01:08]} 35. Qxf3 {[%clk 0:00:06]}  Re6 {[%clk 0:00:59]} 36. Nf5 {[%clk 0:00:06]}  Qg4 {[%clk 0:00:54]} 37. Qf2 {[%clk 0:00:02]}  Qxe4 {[%clk 0:00:51]} 38. Rf1 {[%clk 0:00:02]}  Qxc4 {[%clk 0:00:42]} 39. Ne3 {[%clk 0:00:02]}  Rxe3 {[%clk 0:00:41]} 40. Qxe3 {[%clk 0:00:03]}  Qc5 {[%clk 0:00:40]} 41. Qxc5 {[%clk 0:00:03]}  dxc5 {[%clk 0:00:41]} 42. Rf5 {[%clk 0:00:04]}  a4 {[%clk 0:00:40]} 43. Rg5+ {[%clk 0:00:04]}  Kh8 {[%clk 0:00:40]} 44. Rxc5 {[%clk 0:00:03]}  Ra8 {[%clk 0:00:40]} 45. Re5 {[%clk 0:00:03]}  a3 {[%clk 0:00:40]} 46. Re1 {[%clk 0:00:04]}  a2 {[%clk 0:00:40]} 47. Ra1 {[%clk 0:00:05]}  b5 {[%clk 0:00:41]} 48. Kf2 {[%clk 0:00:06]}  Kg7 {[%clk 0:00:40]} 49. Ke3 {[%clk 0:00:06]}  c5 {[%clk 0:00:40]} 50. Ke4 {[%clk 0:00:05]}  b4 {[%clk 0:00:40]} 51. cxb4 {[%clk 0:00:05]}  cxb4 {[%clk 0:00:41]} 52. Kd3 {[%clk 0:00:06]}  b3 {[%clk 0:00:38]} 53. Kc3 {[%clk 0:00:06]}  Rb8 {[%clk 0:00:37]} 54. Kb2 {[%clk 0:00:06]}  Kg6 {[%clk 0:00:38]} 55. Rh1 {[%clk 0:00:02]}  Kg5 {[%clk 0:00:37]} 56. Rg1 {[%clk 0:00:01]}  Kg4 {[%clk 0:00:37]} 57. Rh1 {[%clk 0:00:02]}  Ra8 {[%clk 0:00:37]} 58. Ra1 {[%clk 0:00:01]}  Kxg3 {[%clk 0:00:36]} 59. Kxb3 {[%clk 0:00:02]}  Kg2 {[%clk 0:00:36]} 60. Kb2 {[%clk 0:00:02]}  h4 {[%clk 0:00:36]} 61. Kb3 {[%clk 0:00:01]}  h6 {[%clk 0:00:36]} 0-1


[Site "https://www.chess.com"]